[Event "Early-Titled-Tuesday-Blitz-April-02-2024"]
[Site "Chess.com"]
[Date "2024.04.02"]
[Round "5"]
[White "KVAIDAN"]
[Black "SlavenPastar"]
[Result "0-1"]
[WhiteElo "2320"]
[BlackElo "2550"]
[TimeControl "180+1"]
[EndTime "8:56:18 PDT"]
[Termination "SlavenPastar won by resignation"]

1. f4 {[%clk 0:02:36.2]} 1... b6 {[%clk 0:02:58.8]} 2. Nf3 {[%clk 0:02:36.5]}
2... Bb7 {[%clk 0:02:59.3]} 3. e3 {[%clk 0:02:36.7]} 3... g6 {[%clk 0:02:58.9]}
4. h4 {[%clk 0:02:35.3]} 4... Nf6 {[%clk 0:02:58.2]} 5. b3 {[%clk 0:02:32.8]}
5... Bg7 {[%clk 0:02:56.9]} 6. Bb2 {[%clk 0:02:33.2]} 6... h5 {[%clk 0:02:51.8]}
7. Ng5 {[%clk 0:02:31.2]} 7... d5 {[%clk 0:02:43.4]} 8. Bb5+ {[%clk 0:02:29.7]}
8... Nbd7 {[%clk 0:02:41.6]} 9. Be2 {[%clk 0:02:30.1]} 9... e6 {[%clk
0:02:36.6]} 10. Na3 {[%clk 0:02:27.1]} 10... a6 {[%clk 0:02:32.4]} 11. Bf3
{[%clk 0:02:27.5]} 11... Qe7 {[%clk 0:02:28.2]} 12. c4 {[%clk 0:02:26.4]} 12...
O-O-O {[%clk 0:02:25.9]} 13. cxd5 {[%clk 0:02:26.4]} 13... exd5 {[%clk
0:02:25.3]} 14. Rc1 {[%clk 0:02:24.7]} 14... Kb8 {[%clk 0:02:23.5]} 15. Nc2
{[%clk 0:02:09.9]} 15... Nc5 {[%clk 0:02:10.4]} 16. Be2 {[%clk 0:01:55.8]} 16...
d4 {[%clk 0:01:56.1]} 17. Bxd4 {[%clk 0:01:47.5]} 17... Bxg2 {[%clk 0:01:52.5]}
18. Rg1 {[%clk 0:01:45.9]} 18... Bb7 {[%clk 0:01:51.1]} 19. b4 {[%clk
0:01:32.6]} 19... Ne6 {[%clk 0:01:32]} 20. Nxe6 {[%clk 0:01:29.7]} 20... Qxe6
{[%clk 0:01:32.9]} 21. Be5 {[%clk 0:01:30.1]} 21... Ne8 {[%clk 0:01:20.7]} 22.
Nd4 {[%clk 0:01:28.3]} 22... Qh3 {[%clk 0:01:14.8]} 23. Bxg7 {[%clk 0:01:03.2]}
23... Qxh4+ {[%clk 0:01:10.7]} 24. Kf1 {[%clk 0:01:02.8]} 24... Qh3+ {[%clk
0:01:08.5]} 25. Ke1 {[%clk 0:01:02.3]} 25... Nxg7 {[%clk 0:01:08.1]} 26. Nc6+
{[%clk 0:01:02]} 26... Bxc6 {[%clk 0:00:46.9]} 27. Rxc6 {[%clk 0:01:01.8]} 27...
Qh4+ {[%clk 0:00:36.8]} 28. Kf1 {[%clk 0:01:00.4]} 28... Nf5 {[%clk 0:00:31.8]}
29. Qe1 {[%clk 0:00:46]} 29... Qh3+ {[%clk 0:00:29.9]} 30. Kf2 {[%clk
0:00:39.7]} 30... Rhe8 {[%clk 0:00:18.6]} 31. Bf3 {[%clk 0:00:34.9]} 31... Qh4+
{[%clk 0:00:16.1]} 32. Kf1 {[%clk 0:00:33.9]} 32... Qxe1+ {[%clk 0:00:16.2]} 33.
Kxe1 {[%clk 0:00:33.2]} 33... Nd4 {[%clk 0:00:17]} 34. Kf2 {[%clk 0:00:26.3]}
34... Nxc6 {[%clk 0:00:15.8]} 35. Bxc6 {[%clk 0:00:25.9]} 35... Rxd2+ {[%clk
0:00:16.5]} 36. Kf3 {[%clk 0:00:23.6]} 36... Red8 {[%clk 0:00:15.6]} 37. Rg5
{[%clk 0:00:23.6]} 37... Rxa2 {[%clk 0:00:13]} 38. f5 {[%clk 0:00:22.7]} 38...
Rc2 {[%clk 0:00:09.2]} 39. b5 {[%clk 0:00:20.5]} 39... axb5 {[%clk 0:00:08.8]}
40. Bxb5 {[%clk 0:00:21]} 40... Rc5 {[%clk 0:00:09.4]} 41. Be2 {[%clk
0:00:16.6]} 41... Rxf5+ {[%clk 0:00:09.2]} 42. Rxf5 {[%clk 0:00:16.1]} 42...
gxf5 {[%clk 0:00:10.1]} 43. Kf4 {[%clk 0:00:17]} 43... Re8 {[%clk 0:00:10.3]}
44. Bxh5 {[%clk 0:00:15.6]} 44... Re4+ {[%clk 0:00:10.3]} 45. Kf3 {[%clk
0:00:16]} 45... f6 {[%clk 0:00:10.8]} 46. Bg6 {[%clk 0:00:16.5]} 46... Re5
{[%clk 0:00:11.3]} 47. Kf4 {[%clk 0:00:16.3]} 47... b5 {[%clk 0:00:11.9]} 48.
Bxf5 {[%clk 0:00:16.9]} 48... Rxf5+ {[%clk 0:00:12.1]} 49. Kxf5 {[%clk
0:00:17.4]} 49... b4 {[%clk 0:00:12.8]} 50. Ke4 {[%clk 0:00:18]} 50... c5 {[%clk
0:00:12.3]} 51. Kd3 {[%clk 0:00:18.6]} 51... Kc7 {[%clk 0:00:12.9]} 52. Kc4
{[%clk 0:00:19.2]} 52... Kd6 {[%clk 0:00:13.2]} 53. e4 {[%clk 0:00:19.6]} 53...
Ke5 {[%clk 0:00:13.1]} 54. Kxc5 {[%clk 0:00:20.1]} 54... b3 {[%clk 0:00:12.8]}
55. Kb4 {[%clk 0:00:21]} 55... b2 {[%clk 0:00:13.7]} 56. Ka3 {[%clk 0:00:21.2]}
56... b1=Q {[%clk 0:00:14.1]} 0-1

[Event "Early-Titled-Tuesday-Blitz-April-02-2024"]
[Site "Chess.com"]
[Date "2024.04.02"]
[Round "5"]
[White "SaiAgni_98"]
[Black "Kildepiotr"]
[Result "1-0"]
[WhiteElo "2531"]
[BlackElo "2749"]
[TimeControl "180+1"]
[EndTime "8:56:20 PDT"]
[Termination "SaiAgni_98 won by resignation"]

1. c4 {[%clk 0:03:00.9]} 1... g6 {[%clk 0:02:57.7]} 2. g3 {[%clk 0:03:00.9]}
2... Bg7 {[%clk 0:02:57.2]} 3. Bg2 {[%clk 0:03:01.1]} 3... Nc6 {[%clk
0:02:57.9]} 4. Nc3 {[%clk 0:03:01]} 4... d6 {[%clk 0:02:58.3]} 5. Rb1 {[%clk
0:02:57.6]} 5... a5 {[%clk 0:02:57.9]} 6. Nf3 {[%clk 0:02:57.4]} 6... e5 {[%clk
0:02:57.9]} 7. d3 {[%clk 0:02:57.4]} 7... f5 {[%clk 0:02:58]} 8. O-O {[%clk
0:02:49.7]} 8... Nf6 {[%clk 0:02:57.8]} 9. Bg5 {[%clk 0:02:45.4]} 9... h6 {[%clk
0:02:57.7]} 10. Bxf6 {[%clk 0:02:45.5]} 10... Qxf6 {[%clk 0:02:58.6]} 11. Nd5
{[%clk 0:02:45.8]} 11... Qf7 {[%clk 0:02:59.1]} 12. a3 {[%clk 0:02:46.1]} 12...
Be6 {[%clk 0:02:56.4]} 13. Nd2 {[%clk 0:02:39.7]} 13... O-O {[%clk 0:02:52]} 14.
b4 {[%clk 0:02:39.7]} 14... axb4 {[%clk 0:02:51.6]} 15. axb4 {[%clk 0:02:40.6]}
15... Nd8 {[%clk 0:02:24.2]} 16. b5 {[%clk 0:02:38.4]} 16... Ra2 {[%clk
0:02:16.2]} 17. Nb4 {[%clk 0:02:28.7]} 17... Ra7 {[%clk 0:02:10.8]} 18. Ra1
{[%clk 0:02:27.3]} 18... Rxa1 {[%clk 0:02:09.8]} 19. Qxa1 {[%clk 0:02:28.2]}
19... e4 {[%clk 0:02:09]} 20. Qa7 {[%clk 0:02:26.1]} 20... exd3 {[%clk 0:02:07]}
21. Nxd3 {[%clk 0:02:19]} 21... Bxc4 {[%clk 0:02:01.1]} 22. Nxc4 {[%clk
0:02:14.2]} 22... Qxc4 {[%clk 0:02:02]} 23. Bxb7 {[%clk 0:01:17.7]} 23... Qxb5
{[%clk 0:01:54.1]} 24. Bf3 {[%clk 0:01:17.2]} 24... Qd7 {[%clk 0:01:21.9]} 25.
Rc1 {[%clk 0:01:10.3]} 25... Ne6 {[%clk 0:01:21.6]} 26. Bd5 {[%clk 0:01:08.8]}
26... Kh8 {[%clk 0:01:17.6]} 27. Bxe6 {[%clk 0:01:03.2]} 27... Qxe6 {[%clk
0:01:18.5]} 28. Rxc7 {[%clk 0:01:03.5]} 28... Qf6 {[%clk 0:01:07.4]} 29. Nf4
{[%clk 0:00:58.8]} 29... Re8 {[%clk 0:01:05.4]} 30. h4 {[%clk 0:00:51.6]} 30...
g5 {[%clk 0:00:59.4]} 31. hxg5 {[%clk 0:00:49.1]} 31... hxg5 {[%clk 0:01:00.3]}
32. Nh5 {[%clk 0:00:45.6]} 32... Qa1+ {[%clk 0:01:00.4]} 33. Qxa1 {[%clk
0:00:45.8]} 33... Bxa1 {[%clk 0:01:01.3]} 34. e3 {[%clk 0:00:46.5]} 34... Kg8
{[%clk 0:00:50.6]} 35. Kg2 {[%clk 0:00:45.2]} 35... Kf8 {[%clk 0:00:45.8]} 36.
Rd7 {[%clk 0:00:43.2]} 36... Be5 {[%clk 0:00:36.2]} 37. f4 {[%clk 0:00:41.3]}
37... gxf4 {[%clk 0:00:35]} 38. exf4 {[%clk 0:00:38.7]} 38... Bd4 {[%clk
0:00:34.9]} 39. Rxd6 {[%clk 0:00:38.7]} 39... Re2+ {[%clk 0:00:33]} 40. Kh3
{[%clk 0:00:39.3]} 40... Bg1 {[%clk 0:00:16]} 41. Rf6+ {[%clk 0:00:38.5]} 41...
Ke7 {[%clk 0:00:15]} 42. Rxf5 {[%clk 0:00:39.4]} 42... Ke6 {[%clk 0:00:14]} 43.
Kg4 {[%clk 0:00:40.3]} 43... Bd4 {[%clk 0:00:13.1]} 44. Rb5 {[%clk 0:00:39]}
44... Re3 {[%clk 0:00:12]} 45. Kg5 {[%clk 0:00:35.8]} 45... Kd6 {[%clk
0:00:10.5]} 46. g4 {[%clk 0:00:35.3]} 46... Re8 {[%clk 0:00:09.7]} 47. f5 {[%clk
0:00:33.4]} 47... Be3+ {[%clk 0:00:09.8]} 48. Kg6 {[%clk 0:00:30.2]} 48... Rg8+
{[%clk 0:00:10.4]} 49. Ng7 {[%clk 0:00:30.6]} 49... Bd4 {[%clk 0:00:10.1]} 50.
f6 {[%clk 0:00:31.2]} 50... Rf8 {[%clk 0:00:09.4]} 51. g5 {[%clk 0:00:31.5]}
51... Kc6 {[%clk 0:00:08.5]} 52. Rb1 {[%clk 0:00:31.5]} 52... Ra8 {[%clk
0:00:08.2]} 53. Rd1 {[%clk 0:00:31.2]} 53... Be5 {[%clk 0:00:07.4]} 54. Kf5
{[%clk 0:00:31.1]} 54... Ra5 {[%clk 0:00:06.8]} 55. Ke6 {[%clk 0:00:30.1]} 55...
Bf4 {[%clk 0:00:06.8]} 56. g6 {[%clk 0:00:29.7]} 56... Re5+ {[%clk 0:00:07]} 57.
Kf7 {[%clk 0:00:30.3]} 57... Bg5 {[%clk 0:00:07.4]} 58. Ne6 {[%clk 0:00:27.3]}
58... Bh4 {[%clk 0:00:07.4]} 59. g7 {[%clk 0:00:26.4]} 1-0

[Event "Early-Titled-Tuesday-Blitz-April-02-2024"]
[Site "Chess.com"]
[Date "2024.04.02"]
[Round "5"]
[White "Harry_Rakkel"]
[Black "PIwan"]
[Result "1-0"]
[WhiteElo "2732"]
[BlackElo "2444"]
[TimeControl "180+1"]
[EndTime "8:56:22 PDT"]
[Termination "Harry_Rakkel won by checkmate"]

1. c4 {[%clk 0:02:56.3]} 1... e6 {[%clk 0:03:00.9]} 2. g3 {[%clk 0:02:55]} 2...
d5 {[%clk 0:03:00.5]} 3. Bg2 {[%clk 0:02:54.9]} 3... f5 {[%clk 0:03:00.8]} 4.
Nf3 {[%clk 0:02:52.7]} 4... Nf6 {[%clk 0:03:00.8]} 5. O-O {[%clk 0:02:49.8]}
5... Bd6 {[%clk 0:02:59.7]} 6. b3 {[%clk 0:02:43.7]} 6... O-O {[%clk 0:02:58.8]}
7. Bb2 {[%clk 0:02:43.4]} 7... dxc4 {[%clk 0:02:47.1]} 8. bxc4 {[%clk
0:02:42.7]} 8... c5 {[%clk 0:02:48]} 9. d3 {[%clk 0:02:41.3]} 9... Nc6 {[%clk
0:02:46.6]} 10. Nbd2 {[%clk 0:02:40.2]} 10... e5 {[%clk 0:02:43.1]} 11. Rb1
{[%clk 0:02:32.2]} 11... Qe7 {[%clk 0:02:42.7]} 12. Nh4 {[%clk 0:02:27.9]} 12...
e4 {[%clk 0:02:15.1]} 13. dxe4 {[%clk 0:02:11.2]} 13... f4 {[%clk 0:01:55.7]}
14. Ba1 {[%clk 0:01:37.4]} 14... Kh8 {[%clk 0:01:51.8]} 15. Qb3 {[%clk
0:01:13.7]} 15... Ng4 {[%clk 0:01:48.3]} 16. h3 {[%clk 0:00:59.2]} 16... fxg3
{[%clk 0:01:24.1]} 17. fxg3 {[%clk 0:00:51.4]} 17... Rxf1+ {[%clk 0:01:00.7]}
18. Rxf1 {[%clk 0:00:50.5]} 18... Nge5 {[%clk 0:00:58.1]} 19. Nf5 {[%clk
0:00:48.8]} 19... Bxf5 {[%clk 0:00:58.2]} 20. exf5 {[%clk 0:00:49.7]} 20... Rf8
{[%clk 0:00:43.7]} 21. Ne4 {[%clk 0:00:47]} 21... Bb8 {[%clk 0:00:37.4]} 22. e3
{[%clk 0:00:30.7]} 22... b6 {[%clk 0:00:36.6]} 23. Qc3 {[%clk 0:00:29.3]} 23...
Nb4 {[%clk 0:00:34.3]} 24. a3 {[%clk 0:00:24.4]} 24... Nbd3 {[%clk 0:00:34.4]}
25. g4 {[%clk 0:00:22]} 25... Qc7 {[%clk 0:00:26.5]} 26. Rd1 {[%clk 0:00:20.6]}
26... Rd8 {[%clk 0:00:24.9]} 27. g5 {[%clk 0:00:18.8]} 27... Kg8 {[%clk
0:00:13.3]} 28. f6 {[%clk 0:00:15.9]} 28... g6 {[%clk 0:00:13.6]} 29. Nf2 {[%clk
0:00:12.4]} 29... Nf3+ {[%clk 0:00:12.9]} 30. Kf1 {[%clk 0:00:10.9]} 30... Qh2
{[%clk 0:00:08.5]} 31. f7+ {[%clk 0:00:07.7]} 31... Kxf7 {[%clk 0:00:03.5]} 32.
Qf6+ {[%clk 0:00:07]} 32... Ke8 {[%clk 0:00:03.3]} 33. Qxf3 {[%clk 0:00:05.5]}
33... Nxf2 {[%clk 0:00:02.5]} 34. Rxd8+ {[%clk 0:00:04.7]} 34... Kxd8 {[%clk
0:00:03.4]} 35. Qxf2 {[%clk 0:00:04.7]} 35... Be5 {[%clk 0:00:03.8]} 36. Qf8+
{[%clk 0:00:04.6]} 36... Kd7 {[%clk 0:00:03.8]} 37. Qf7+ {[%clk 0:00:04.8]}
37... Kd8 {[%clk 0:00:04.2]} 38. Qg8+ {[%clk 0:00:04.4]} 38... Kd7 {[%clk
0:00:04.3]} 39. Qxh7+ {[%clk 0:00:04.7]} 39... Ke6 {[%clk 0:00:02.8]} 40. Qxg6+
{[%clk 0:00:04.8]} 40... Ke7 {[%clk 0:00:03.3]} 41. Qh7+ {[%clk 0:00:04.7]}
41... Ke6 {[%clk 0:00:03.2]} 42. Qg8+ {[%clk 0:00:04.7]} 42... Ke7 {[%clk
0:00:03.3]} 43. Qc8 {[%clk 0:00:04]} 43... Bxa1 {[%clk 0:00:02]} 44. Qb7+ {[%clk
0:00:03.8]} 44... Kf8 {[%clk 0:00:01.9]} 45. Qa8+ {[%clk 0:00:03.6]} 45... Kg7
{[%clk 0:00:02.1]} 46. Qxa7+ {[%clk 0:00:03.8]} 46... Kf8 {[%clk 0:00:02]} 47.
Qa8+ {[%clk 0:00:03.6]} 47... Kg7 {[%clk 0:00:02.1]} 48. Qb7+ {[%clk 0:00:03.5]}
48... Kf8 {[%clk 0:00:02.2]} 49. g6 {[%clk 0:00:03.3]} 49... Qe5 {[%clk
0:00:02.6]} 50. Qf7# {[%clk 0:00:02.8]} 1-0

[Event "Early-Titled-Tuesday-Blitz-April-02-2024"]
[Site "Chess.com"]
[Date "2024.04.02"]
[Round "5"]
[White "Kunalm64"]
[Black "Christ_is_alive"]
[Result "1-0"]
[WhiteElo "2625"]
[BlackElo "2339"]
[TimeControl "180+1"]
[EndTime "8:56:22 PDT"]
[Termination "Kunalm64 won on time"]

1. e4 {[%clk 0:02:58.6]} 1... c5 {[%clk 0:03:00.2]} 2. Nf3 {[%clk 0:02:56.9]}
2... Nc6 {[%clk 0:03:00.8]} 3. Bb5 {[%clk 0:02:56]} 3... g6 {[%clk 0:03:00.7]}
4. O-O {[%clk 0:02:55.1]} 4... Bg7 {[%clk 0:03:00.5]} 5. Bxc6 {[%clk 0:02:54.3]}
5... dxc6 {[%clk 0:02:59.6]} 6. d3 {[%clk 0:02:53.4]} 6... Nf6 {[%clk 0:02:57]}
7. h3 {[%clk 0:02:51.1]} 7... e5 {[%clk 0:02:49.5]} 8. Nxe5 {[%clk 0:02:38]}
8... O-O {[%clk 0:02:08.8]} 9. Nf3 {[%clk 0:02:32.8]} 9... c4 {[%clk 0:02:01.6]}
10. e5 {[%clk 0:02:30.7]} 10... Nd7 {[%clk 0:01:52]} 11. d4 {[%clk 0:02:29.3]}
11... Nb6 {[%clk 0:01:47.2]} 12. Nc3 {[%clk 0:02:17.3]} 12... Bf5 {[%clk
0:01:46.2]} 13. Re1 {[%clk 0:02:13.7]} 13... Nd5 {[%clk 0:01:31.4]} 14. Ne4
{[%clk 0:02:11.5]} 14... Qb6 {[%clk 0:01:29.3]} 15. c3 {[%clk 0:02:08.2]} 15...
Rad8 {[%clk 0:01:26.2]} 16. Nd6 {[%clk 0:02:03.1]} 16... Bd3 {[%clk 0:01:21]}
17. Qd2 {[%clk 0:01:39.8]} 17... Qc7 {[%clk 0:01:06.6]} 18. b3 {[%clk 0:01:30]}
18... b5 {[%clk 0:01:06.7]} 19. bxc4 {[%clk 0:01:25.9]} 19... bxc4 {[%clk
0:01:07.6]} 20. a4 {[%clk 0:00:43.3]} 20... Qa5 {[%clk 0:01:04.3]} 21. Bb2
{[%clk 0:00:36.3]} 21... Rb8 {[%clk 0:01:00.8]} 22. Rec1 {[%clk 0:00:32.2]}
22... Rb3 {[%clk 0:00:54]} 23. Ne1 {[%clk 0:00:24.9]} 23... Rfb8 {[%clk
0:00:37]} 24. Nxd3 {[%clk 0:00:17.2]} 24... cxd3 {[%clk 0:00:37.9]} 25. Ra2
{[%clk 0:00:13.8]} 25... Qa6 {[%clk 0:00:20.5]} 26. Ne4 {[%clk 0:00:12.2]} 26...
Qb6 {[%clk 0:00:10.1]} 27. Ba1 {[%clk 0:00:11.2]} 27... Rb1 {[%clk 0:00:09.9]}
28. Kh2 {[%clk 0:00:10.6]} 28... Qb3 {[%clk 0:00:06.2]} 29. Rxb1 {[%clk
0:00:08.1]} 29... Qxb1 {[%clk 0:00:06.9]} 30. Rb2 {[%clk 0:00:08]} 30... Rxb2
{[%clk 0:00:06.9]} 31. Qxb2 {[%clk 0:00:07.9]} 31... Qxb2 {[%clk 0:00:03]} 32.
Bxb2 {[%clk 0:00:08.8]} 32... Nb6 {[%clk 0:00:03.2]} 33. Nd2 {[%clk 0:00:07]}
33... Nxa4 {[%clk 0:00:03.3]} 34. Ba1 {[%clk 0:00:07]} 34... Bf8 {[%clk
0:00:03.9]} 35. Kg3 {[%clk 0:00:06.7]} 35... Ba3 {[%clk 0:00:04.4]} 36. Kf3
{[%clk 0:00:06.5]} 36... Bb2 {[%clk 0:00:04.6]} 37. Bxb2 {[%clk 0:00:06.3]}
37... Nxb2 {[%clk 0:00:05.5]} 38. Ke4 {[%clk 0:00:05.8]} 38... Kg7 {[%clk
0:00:06]} 39. f4 {[%clk 0:00:05.5]} 39... a5 {[%clk 0:00:06.2]} 40. d5 {[%clk
0:00:01.4]} 40... cxd5+ {[%clk 0:00:07.1]} 41. Kxd5 {[%clk 0:00:01.6]} 41... a4
{[%clk 0:00:07.8]} 42. f5 {[%clk 0:00:01.5]} 42... a3 {[%clk 0:00:07.6]} 43. e6
{[%clk 0:00:01.6]} 43... fxe6+ {[%clk 0:00:07.4]} 44. fxe6 {[%clk 0:00:01.9]}
44... Kf8 {[%clk 0:00:05.7]} 45. Kd6 {[%clk 0:00:01.7]} 45... a2 {[%clk
0:00:05.7]} 46. e7+ {[%clk 0:00:01.9]} 46... Ke8 {[%clk 0:00:06]} 47. Ne4 {[%clk
0:00:02.2]} 47... Nc4+ {[%clk 0:00:04.3]} 48. Ke6 {[%clk 0:00:02.6]} 1-0

[Event "Early-Titled-Tuesday-Blitz-April-02-2024"]
[Site "Chess.com"]
[Date "2024.04.02"]
[Round "5"]
[White "schachlana"]
[Black "Alenzer"]
[Result "0-1"]
[WhiteElo "2358"]
[BlackElo "2205"]
[TimeControl "180+1"]
[EndTime "8:56:30 PDT"]
[Termination "Alenzer won by resignation"]

1. d4 {[%clk 0:03:00.9]} 1... d5 {[%clk 0:02:58.9]} 2. Nf3 {[%clk 0:02:59.4]}
2... Nf6 {[%clk 0:02:58.9]} 3. g3 {[%clk 0:02:56.1]} 3... c5 {[%clk 0:02:56.8]}
4. Bg2 {[%clk 0:02:57]} 4... Nc6 {[%clk 0:02:54.7]} 5. O-O {[%clk 0:02:56]} 5...
Bf5 {[%clk 0:02:48.7]} 6. c4 {[%clk 0:02:55.8]} 6... e6 {[%clk 0:02:46.8]} 7.
Nc3 {[%clk 0:02:51.8]} 7... a6 {[%clk 0:02:29.4]} 8. cxd5 {[%clk 0:02:49.8]}
8... exd5 {[%clk 0:02:29.3]} 9. dxc5 {[%clk 0:02:47.2]} 9... Bxc5 {[%clk
0:02:28.2]} 10. Na4 {[%clk 0:02:46.7]} 10... Ba7 {[%clk 0:02:20.3]} 11. Bg5
{[%clk 0:02:44.6]} 11... Be4 {[%clk 0:01:55.2]} 12. Nc3 {[%clk 0:02:32]} 12...
O-O {[%clk 0:01:47.5]} 13. Rc1 {[%clk 0:02:24.4]} 13... h6 {[%clk 0:01:35.8]}
14. Bxf6 {[%clk 0:02:19.7]} 14... Qxf6 {[%clk 0:01:35.3]} 15. Nxd5 {[%clk
0:02:19.6]} 15... Qxb2 {[%clk 0:01:21.5]} 16. Nc3 {[%clk 0:02:08.4]} 16... Bg6
{[%clk 0:01:15.8]} 17. Nh4 {[%clk 0:02:01.5]} 17... Rfd8 {[%clk 0:01:00.8]} 18.
Qa4 {[%clk 0:02:00.1]} 18... b5 {[%clk 0:00:49.7]} 19. Qf4 {[%clk 0:01:52.3]}
19... Rac8 {[%clk 0:00:43.7]} 20. Nxg6 {[%clk 0:01:50.3]} 20... fxg6 {[%clk
0:00:43.9]} 21. Nd5 {[%clk 0:01:31.1]} 21... Kh7 {[%clk 0:00:27]} 22. Qf7 {[%clk
0:01:12]} 22... Bd4 {[%clk 0:00:21.4]} 23. Be4 {[%clk 0:01:04.2]} 23... Ne5
{[%clk 0:00:20.3]} 24. Qe7 {[%clk 0:00:40.5]} 24... Rxc1 {[%clk 0:00:18.3]} 25.
Qxd8 {[%clk 0:00:37.5]} 25... Rxf1+ {[%clk 0:00:17.9]} 26. Kxf1 {[%clk
0:00:38.4]} 26... Qc1+ {[%clk 0:00:15.4]} 27. Kg2 {[%clk 0:00:38.2]} 27... Qe1
{[%clk 0:00:15.5]} 28. Qf8 {[%clk 0:00:30.7]} 28... Qxe2 {[%clk 0:00:15.8]} 29.
Ne7 {[%clk 0:00:13.5]} 29... Qxe4+ {[%clk 0:00:15]} 30. Kh3 {[%clk 0:00:10.8]}
30... Qg4+ {[%clk 0:00:14.6]} 31. Kg2 {[%clk 0:00:11]} 31... Qe4+ {[%clk
0:00:14.8]} 32. Kf1 {[%clk 0:00:09.6]} 32... Qh1+ {[%clk 0:00:13.8]} 33. Ke2
{[%clk 0:00:09.8]} 33... Qe4+ {[%clk 0:00:14.4]} 34. Kd2 {[%clk 0:00:08.2]}
34... Nc4+ {[%clk 0:00:13.4]} 35. Kd1 {[%clk 0:00:06.7]} 35... Qd3+ {[%clk
0:00:12.5]} 36. Ke1 {[%clk 0:00:06.5]} 36... Qd2+ {[%clk 0:00:12.4]} 37. Kf1
{[%clk 0:00:07]} 37... Qd1+ {[%clk 0:00:09.3]} 38. Kg2 {[%clk 0:00:07.1]} 38...
Ne3+ {[%clk 0:00:09]} 39. fxe3 {[%clk 0:00:07.1]} 39... Qe2+ {[%clk 0:00:09.5]}
40. Qf2 {[%clk 0:00:06.9]} 40... Qd3 {[%clk 0:00:07.1]} 41. exd4 {[%clk
0:00:05.8]} 41... Qe4+ {[%clk 0:00:07.7]} 42. Kg1 {[%clk 0:00:04.9]} 42... Qxe7
{[%clk 0:00:08.3]} 43. Qd2 {[%clk 0:00:04.6]} 43... Qd6 {[%clk 0:00:08.5]} 44.
d5 {[%clk 0:00:05]} 44... Qc5+ {[%clk 0:00:08.9]} 45. Kg2 {[%clk 0:00:05.2]}
45... Qd6 {[%clk 0:00:09.8]} 46. Qd4 {[%clk 0:00:05.2]} 46... Qa3 {[%clk
0:00:09.8]} 47. d6 {[%clk 0:00:04.6]} 47... Qxa2+ {[%clk 0:00:10.4]} 48. Kg1
{[%clk 0:00:04.8]} 48... Qb1+ {[%clk 0:00:10.1]} 49. Kg2 {[%clk 0:00:04.2]}
49... Qc2+ {[%clk 0:00:10.7]} 50. Kh3 {[%clk 0:00:03.9]} 50... Qf5+ {[%clk
0:00:11]} 51. Kg2 {[%clk 0:00:03.9]} 51... Qc2+ {[%clk 0:00:11.3]} 52. Qf2
{[%clk 0:00:03]} 52... Qc6+ {[%clk 0:00:11.2]} 53. Kg1 {[%clk 0:00:03.2]} 53...
Qxd6 {[%clk 0:00:11.7]} 54. Qf6 {[%clk 0:00:03.7]} 54... Qxf6 {[%clk 0:00:11.6]}
0-1

[Event "Early-Titled-Tuesday-Blitz-April-02-2024"]
[Site "Chess.com"]
[Date "2024.04.02"]
[Round "5"]
[White "CSB7"]
[Black "Predator0608"]
[Result "1-0"]
[WhiteElo "2778"]
[BlackElo "2564"]
[TimeControl "180+1"]
[EndTime "8:56:33 PDT"]
[Termination "CSB7 won by resignation"]

1. c4 {[%clk 0:03:00.9]} 1... e6 {[%clk 0:02:50.1]} 2. g3 {[%clk 0:02:54.2]}
2... d5 {[%clk 0:02:50.3]} 3. Bg2 {[%clk 0:02:54.9]} 3... Nf6 {[%clk 0:02:50.1]}
4. d4 {[%clk 0:02:54.9]} 4... Bb4+ {[%clk 0:02:48.7]} 5. Bd2 {[%clk 0:02:47.9]}
5... Be7 {[%clk 0:02:48.9]} 6. Nf3 {[%clk 0:02:48.2]} 6... O-O {[%clk
0:02:46.5]} 7. O-O {[%clk 0:02:48.5]} 7... c6 {[%clk 0:02:47]} 8. Qb3 {[%clk
0:02:46.9]} 8... b6 {[%clk 0:02:45.5]} 9. Rc1 {[%clk 0:02:33.5]} 9... a5 {[%clk
0:02:40.2]} 10. cxd5 {[%clk 0:02:25.2]} 10... cxd5 {[%clk 0:02:38]} 11. Nc3
{[%clk 0:02:24.9]} 11... Ba6 {[%clk 0:01:41.3]} 12. Nb5 {[%clk 0:02:24.4]} 12...
Ne4 {[%clk 0:01:38]} 13. Bf4 {[%clk 0:02:02.6]} 13... Nd7 {[%clk 0:01:24.9]} 14.
Nc7 {[%clk 0:01:34.8]} 14... Ra7 {[%clk 0:01:22.8]} 15. Nxa6 {[%clk 0:01:33.3]}
15... Rxa6 {[%clk 0:01:23.7]} 16. Bc7 {[%clk 0:00:56.6]} 16... Qe8 {[%clk
0:00:40.1]} 17. e3 {[%clk 0:00:38.4]} 17... Ndf6 {[%clk 0:00:29.2]} 18. Bf1
{[%clk 0:00:32.4]} 18... Ra7 {[%clk 0:00:24.8]} 19. Bb5 {[%clk 0:00:29.8]} 19...
Qa8 {[%clk 0:00:23.4]} 20. Bc6 {[%clk 0:00:18.8]} 20... Qc8 {[%clk 0:00:20.3]}
21. Bxb6 {[%clk 0:00:17.3]} 21... Qb8 {[%clk 0:00:15.5]} 22. Bxa7 {[%clk
0:00:15.8]} 22... Qxa7 {[%clk 0:00:16.4]} 23. Qb7 {[%clk 0:00:14.9]} 23... Qxb7
{[%clk 0:00:14.6]} 24. Bxb7 {[%clk 0:00:15.8]} 24... Nd6 {[%clk 0:00:15.3]} 25.
Ba6 {[%clk 0:00:14.8]} 25... Rb8 {[%clk 0:00:16.2]} 26. b3 {[%clk 0:00:14.3]}
26... Nfe4 {[%clk 0:00:15.5]} 27. Rc2 {[%clk 0:00:14.3]} 27... f6 {[%clk
0:00:14.8]} 28. Nd2 {[%clk 0:00:12]} 28... Rb6 {[%clk 0:00:10.4]} 29. Nxe4
{[%clk 0:00:08.6]} 29... Nxe4 {[%clk 0:00:09.9]} 30. Bd3 {[%clk 0:00:09]} 30...
Nd6 {[%clk 0:00:09.3]} 31. Rac1 {[%clk 0:00:08.5]} 31... g6 {[%clk 0:00:09.3]}
32. Rc6 {[%clk 0:00:08.8]} 32... Rb7 {[%clk 0:00:08.9]} 33. Rc7 {[%clk 0:00:09]}
33... Rxc7 {[%clk 0:00:07.8]} 34. Rxc7 {[%clk 0:00:09.9]} 34... Kf7 {[%clk
0:00:08.7]} 35. Ra7 {[%clk 0:00:09.9]} 35... e5 {[%clk 0:00:08.5]} 36. Rxa5
{[%clk 0:00:08.3]} 36... e4 {[%clk 0:00:06.7]} 37. Bb5 {[%clk 0:00:05.5]} 37...
Ke6 {[%clk 0:00:07.6]} 38. Bc6 {[%clk 0:00:03.9]} 38... Bd8 {[%clk 0:00:08.5]}
39. Bxd5+ {[%clk 0:00:03.8]} 39... Ke7 {[%clk 0:00:09.4]} 40. Ra7+ {[%clk
0:00:04]} 40... Ke8 {[%clk 0:00:10]} 41. Rxh7 {[%clk 0:00:04.6]} 41... Be7
{[%clk 0:00:10.7]} 42. Rg7 {[%clk 0:00:03.4]} 42... Kd7 {[%clk 0:00:11.6]} 43.
Rxg6 {[%clk 0:00:02.8]} 43... Kc7 {[%clk 0:00:12.3]} 44. Rg7 {[%clk 0:00:03.1]}
44... Kd7 {[%clk 0:00:13.2]} 45. h4 {[%clk 0:00:03.5]} 45... Ne8 {[%clk
0:00:14.1]} 46. Rh7 {[%clk 0:00:03.4]} 46... f5 {[%clk 0:00:14.9]} 47. h5 {[%clk
0:00:03.8]} 47... Nf6 {[%clk 0:00:15.8]} 48. Rh8 {[%clk 0:00:01.7]} 48... Nxd5
{[%clk 0:00:16]} 49. h6 {[%clk 0:00:02.4]} 49... Nf6 {[%clk 0:00:16.9]} 50. h7
{[%clk 0:00:02.8]} 50... Ke6 {[%clk 0:00:17.4]} 51. a4 {[%clk 0:00:01.9]} 51...
Kf7 {[%clk 0:00:17.7]} 52. a5 {[%clk 0:00:02.5]} 52... Kg7 {[%clk 0:00:17.6]}
53. a6 {[%clk 0:00:03.1]} 53... Kxh8 {[%clk 0:00:17.5]} 54. a7 {[%clk
0:00:03.9]} 54... Kxh7 {[%clk 0:00:17.5]} 55. a8=Q {[%clk 0:00:04.8]} 55... Kg7
{[%clk 0:00:18.4]} 56. Qb7 {[%clk 0:00:05.1]} 56... Kf7 {[%clk 0:00:19.3]} 57.
b4 {[%clk 0:00:05.7]} 57... Ne8 {[%clk 0:00:20.2]} 58. b5 {[%clk 0:00:05.8]}
58... Nd6 {[%clk 0:00:21.1]} 59. Qd5+ {[%clk 0:00:06.2]} 59... Kf6 {[%clk
0:00:22]} 60. b6 {[%clk 0:00:07.1]} 60... Nc8 {[%clk 0:00:21.2]} 61. Qc6+ {[%clk
0:00:06.4]} 61... Nd6 {[%clk 0:00:20.5]} 62. b7 {[%clk 0:00:06.7]} 62... Kf7
{[%clk 0:00:21]} 63. b8=Q {[%clk 0:00:07.1]} 1-0